fUSD/lending_fUSD_20250823
["ID","MTS","AMOUNT","RATE_DAILY","PERIOD"]
[381002173,1755931854459,-400.0,0.00013972,2]
[381002174,1755931854468,-400.0,0.00013972,2]
[381002175,1755931854477,-400.0,0.00013972,2]
[381002176,1755931854487,-400.0,0.00013972,2]
[381002177,1755931854496,-481.25,0.00013972,2]
[381002178,1755931854506,-400.0,0.00013972,2]
[381002179,1755931854525,-400.0,0.00013972,2]
[381002180,1755931854535,-400.0,0.00013972,2]
[381002181,1755931854544,-400.0,0.00013972,2]
[381002182,1755931854554,-400.0,0.00013972,2]
[381002183,1755931854564,-400.0,0.00013972,2]
[381002184,1755931854574,-400.0,0.00013972,2]
[381002185,1755931854584,-448.15,0.00013972,2]
[381002186,1755931854594,-400.0,0.00013972,2]
[381002187,1755931854603,-400.0,0.00013972,2]
[381002188,1755931854613,-400.0,0.00013972,2]
[381002189,1755931854626,-400.0,0.00013972,2]
[381002190,1755931854636,-479.23,0.00013972,2]
[381002191,1755931854645,-766.76,0.00013972,2]
[381002192,1755931854655,-400.0,0.00013972,2]
[381002193,1755931854667,-517.32,0.00013972,2]
[381002194,1755931854678,-400.0,0.00013972,2]
[381002195,1755931854688,-400.0,0.00013972,2]
[381002196,1755931854699,-400.0,0.00013972,2]
[381002197,1755931854710,-400.0,0.00013972,2]
[381002198,1755931854719,-400.0,0.00013972,2]
[381002199,1755931854729,-400.0,0.00013972,2]
[381002200,1755931854740,-400.0,0.00013972,2]
[381002201,1755931854749,-400.0,0.00013972,2]
[381002202,1755931854760,-893.35,0.00013972,2]
[381002203,1755931854770,-400.0,0.00013972,2]
[381002204,1755931854780,-400.0,0.00013972,2]
[381002205,1755931854791,-515.17,0.00013972,2]
[381002206,1755931854800,-400.0,0.00013972,2]
[381002207,1755931854810,-412.49,0.00013972,2]
[381002208,1755931854819,-400.0,0.00013972,2]
[381002209,1755931854829,-400.0,0.00013972,2]
[381002210,1755931854838,-400.0,0.00013972,2]
[381002211,1755931854848,-400.0,0.00013972,2]
[381002212,1755931854858,-628.41,0.00013972,2]
[381002213,1755931854867,-400.0,0.00013972,2]
[381002214,1755931854877,-400.0,0.00013972,2]
[381002215,1755931854886,-400.0,0.00013972,2]
[381002216,1755931854896,-455.72,0.00013972,2]
[381002217,1755931854906,-400.0,0.00013972,2]
[381002218,1755931854915,-400.0,0.00013972,2]
[381002219,1755931854925,-336.28287231,0.00013972,2]
[381002220,1755931854935,-400.0,0.00013972,2]
[381002221,1755931854944,-400.0,0.00013972,2]
[381002222,1755931854954,-461.95,0.00013972,2]
[381002223,1755931854964,-400.0,0.00013972,2]
[381002224,1755931854973,-400.0,0.00013972,2]
[381002225,1755931854983,-400.0,0.00013972,2]
[381002226,1755931854993,-543.34,0.00013972,2]
[381002227,1755931855003,-400.0,0.00013972,2]
[381002228,1755931855012,-400.0,0.00013972,2]
[381002229,1755931855022,-500.44316495,0.00013972,2]
[381002230,1755931855034,-400.0,0.00013972,2]
[381002231,1755931855044,-400.0,0.00013972,2]
[381002232,1755931855055,-775.83,0.00013972,2]
[381002233,1755931855066,-400.0,0.00013972,2]
[381002234,1755931855076,-400.0,0.00013972,2]
[381002235,1755931855086,-400.0,0.00013972,2]
[381002236,1755931855095,-400.0,0.00013972,2]
[381002237,1755931855105,-400.0,0.00013972,2]
[381002238,1755931855115,-400.0,0.00013972,2]
[381002239,1755931855126,-400.0,0.00013972,2]
[381002240,1755931855135,-400.0,0.00013972,2]
[381002241,1755931855145,-523.05,0.00013972,2]
[381002242,1755931855155,-400.0,0.00013972,2]
[381002243,1755931855166,-400.0,0.00013972,2]
[381002244,1755931855175,-400.0,0.00013972,2]
[381002245,1755931855186,-400.0,0.00013972,2]
[381002246,1755931855195,-406.62,0.00013972,2]
[381002247,1755931855205,-400.0,0.00013972,2]
[381002248,1755931855215,-790.06,0.00013972,2]
[381002249,1755931855225,-400.0,0.00013972,2]
[381002250,1755931855235,-711.41,0.00013972,2]
[381002251,1755931855245,-400.0,0.00013972,2]
[381002252,1755931855255,-400.0,0.00013972,2]
[381002253,1755931855265,-400.0,0.00013972,2]
[381002254,1755931855274,-400.0,0.00013972,2]
[381002255,1755931855284,-456.52,0.00013972,2]
[381002256,1755931855294,-400.0,0.00013972,2]
[381002257,1755931855304,-568.12,0.00013972,2]
[381002258,1755931855314,-873.54,0.00013972,2]
[381002259,1755931855324,-408.64,0.00013972,2]
[381002260,1755931855334,-770.47,0.00013972,2]
[381002261,1755931855343,-478.66,0.00013972,2]
[381002262,1755931855354,-400.0,0.00013972,2]
[381002263,1755931855364,-400.0,0.00013972,2]
[381002264,1755931855374,-506.84,0.00013972,2]
[381002265,1755931855384,-400.0,0.00013972,2]
[381002266,1755931855393,-400.0,0.00013972,2]
[381002267,1755931855403,-400.0,0.00013972,2]
[381002268,1755931855412,-530.03,0.00013972,2]
[381002269,1755931855423,-402.28437581,0.00013972,2]
[381002270,1755931855432,-400.0,0.00013972,2]
[381002271,1755931855442,-400.0,0.00013972,2]
[381002272,1755931855452,-400.0,0.00013972,2]
[381002273,1755931855463,-409.21,0.00013972,2]
[381002274,1755931855472,-400.0,0.00013972,2]
[381002275,1755931855483,-400.0,0.00013972,2]
[381002276,1755931855493,-400.0,0.00013972,2]
[381002277,1755931855503,-400.0,0.00013972,2]
[381002278,1755931855515,-400.0,0.00013972,2]
[381002279,1755931855526,-788.94,0.00013972,2]
[381002280,1755931855538,-400.0,0.00013972,2]
[381002281,1755931855548,-412.57,0.00013972,2]
[381002282,1755931855559,-400.0,0.00013972,2]
[381002283,1755931855569,-400.0,0.00013972,2]
[381002284,1755931855579,-400.0,0.00013972,2]
[381002285,1755931855589,-509.95,0.00013972,2]
[381002286,1755931855599,-450.92,0.00013972,2]
[381002287,1755931855609,-400.0,0.00013972,2]
[381002288,1755931855621,-400.0,0.00013972,2]
[381002289,1755931855631,-400.0,0.00013972,2]
[381002290,1755931855641,-435.16,0.00013972,2]
[381002291,1755931855651,-544.28,0.00013972,2]
[381002292,1755931855662,-418.16,0.00013972,2]
[381002293,1755931855673,-400.0,0.00013972,2]
[381002294,1755931855682,-400.0,0.00013972,2]
[381002295,1755931855692,-400.0,0.00013972,2]
[381002296,1755931855703,-415.92,0.00013972,2]
[381002297,1755931855714,-400.0,0.00013972,2]
[381002298,1755931855723,-400.0,0.00013972,2]
[381002299,1755931855733,-400.0,0.00013972,2]
[381002300,1755931855743,-400.0,0.00013972,2]
[381002301,1755931855752,-529.24100738,0.00013972,2]
[381002302,1755931855761,-400.0,0.00013972,2]
[381002303,1755931855771,-400.0,0.00013972,2]
[381002304,1755931855781,-580.19,0.00013972,2]
[381002305,1755931855791,-465.06,0.00013972,2]
[381002306,1755931855800,-400.0,0.00013972,2]
[381002307,1755931855810,-1682.42,0.00013972,2]
[381002308,1755931855819,-400.0,0.00013972,2]
[381002309,1755931855829,-431.66,0.00013972,2]
[381002310,1755931855838,-444.72,0.00013972,2]
[381002311,1755931855847,-400.0,0.00013972,2]
[381002312,1755931855857,-610.36,0.00013972,2]
[381002313,1755931855867,-400.0,0.00013972,2]
[381002314,1755931855877,-476.7,0.00013972,2]
[381002315,1755931855887,-400.0,0.00013972,2]
[381002316,1755931855896,-400.0,0.00013972,2]
[381002317,1755931855905,-476.37,0.00013972,2]
[381002318,1755931855915,-812.39,0.00013972,2]
[381002319,1755931855924,-432.55,0.00013972,2]
[381002320,1755931855934,-690.24,0.00013972,2]
[381002321,1755931855943,-566.02,0.00013972,2]
[381002322,1755931855953,-400.0,0.00013972,2]
[381002323,1755931855962,-400.0,0.00013972,2]
[381002324,1755931855973,-418.96,0.00013972,2]
[381002325,1755931855982,-400.0,0.00013972,2]
[381002326,1755931855991,-410.9,0.00013972,2]
[381002327,1755931856001,-400.0,0.00013972,2]
[381002328,1755931856010,-676.65,0.00013972,2]
[381002329,1755931856020,-400.0,0.00013972,2]
[381002330,1755931856030,-1064.79,0.00013972,2]
[381002331,1755931856040,-400.0,0.00013972,2]
[381002332,1755931856049,-400.0,0.00013972,2]
[381002333,1755931856059,-483.98,0.00013972,2]
[381002334,1755931856069,-400.0,0.00013972,2]
[381002335,1755931856079,-523.72,0.00013972,2]
[381002336,1755931856090,-968.34,0.00013972,2]
[381002337,1755931856100,-442.47,0.00013972,2]
[381002338,1755931856110,-400.0,0.00013972,2]
[381002339,1755931856119,-739.8,0.00013972,2]
[381002340,1755931856129,-431.85,0.00013972,2]
[381002341,1755931856139,-400.0,0.00013972,2]
[381002342,1755931856149,-454.1,0.00013972,2]
[381002343,1755931856159,-521.5,0.00013972,2]
[381002344,1755931856170,-400.0,0.00013972,2]
[381002345,1755931856179,-400.0,0.00013972,2]
[381002346,1755931856189,-428.52,0.00013972,2]
[381002347,1755931856199,-400.0,0.00013972,2]
[381002348,1755931856208,-609.89,0.00013972,2]
[381002349,1755931856218,-400.0,0.00013972,2]
[381002350,1755931856227,-628.33,0.00013972,2]
[381002351,1755931856237,-400.0,0.00013972,2]
[381002352,1755931856247,-701.54,0.00013972,2]
[381002353,1755931856257,-400.0,0.00013972,2]
[381002354,1755931856266,-400.0,0.00013972,2]
[381002355,1755931856276,-400.0,0.00013972,2]
[381002356,1755931856286,-400.0,0.00013972,2]
[381002357,1755931856295,-400.0,0.00013972,2]
[381002358,1755931856304,-1082.39,0.00013972,2]
[381002359,1755931856314,-407.29,0.00013972,2]
[381002360,1755931856324,-400.0,0.00013972,2]
[381002361,1755931856333,-502.11,0.00013972,2]
[381002362,1755931856343,-400.0,0.00013972,2]
[381002363,1755931856352,-154.793984,0.00013972,2]
[381002364,1755931856362,-401.63033676,0.00013972,2]
[381002365,1755931856371,-400.0,0.00013972,2]
[381002366,1755931856381,-400.0,0.00013972,2]
[381002367,1755931856390,-1022.02,0.00013972,2]
[381002368,1755931856400,-495.07,0.00013972,2]
[381002369,1755931856410,-400.0,0.00013972,2]
[381002370,1755931856422,-523.54,0.00013972,2]
[381002371,1755931856432,-411.92,0.00013972,2]
[381002372,1755931856441,-400.0,0.00013972,2]
[381002373,1755931856450,-400.0,0.00013972,2]
[381002374,1755931856460,-1092.28,0.00013972,2]
[381002375,1755931856469,-400.0,0.00013972,2]
[381002376,1755931856479,-400.0,0.00013972,2]
[381002377,1755931856492,-400.0,0.00013972,2]
[381002378,1755931856501,-411.41,0.00013972,2]
[381002379,1755931856511,-400.0,0.00013972,2]
[381002380,1755931856520,-577.65,0.00013972,2]
[381002381,1755931856530,-400.0,0.00013972,2]
[381002382,1755931856539,-400.0,0.00013972,2]
[381002383,1755931856549,-663.828945,0.00013972,2]
[381002384,1755931856558,-472.81,0.00013972,2]
[381002385,1755931856568,-400.0,0.00013972,2]
[381002386,1755931856577,-400.0,0.00013972,2]
[381002387,1755931856587,-400.0,0.00013972,2]
[381002388,1755931856596,-400.0,0.00013972,2]
[381002389,1755931856606,-562.43,0.00013972,2]
[381002390,1755931856617,-456.44,0.00013972,2]
[381002391,1755931856627,-400.0,0.00013972,2]
[381002392,1755931856637,-400.0,0.00013972,2]
[381002393,1755931856647,-400.0,0.00013972,2]
[381002394,1755931856658,-549.87,0.00013972,2]
[381002395,1755931856669,-400.0,0.00013972,2]
[381002396,1755931856679,-400.0,0.00013972,2]
[381002397,1755931856690,-689.68,0.00013972,2]
[381002398,1755931856700,-400.0,0.00013972,2]
[381002399,1755931856710,-550.52,0.00013972,2]
[381002400,1755931856720,-439.61,0.00013972,2]
[381002401,1755931856729,-429.5,0.00013972,2]
[381002402,1755931856738,-400.0,0.00013972,2]
[381002403,1755931856748,-933.16,0.00013972,2]
[381002404,1755931856758,-400.0,0.00013972,2]
[381002405,1755931856767,-206.8814975,0.00013972,2]
[381002406,1755931857741,-193.1185025,0.00013972,2]
[381002407,1755931857751,-534.28633389,0.00013972,2]
[381002408,1755931857763,-372.40366611,0.00013972,2]
[381002409,1755931857772,-400.0,0.00013972,2]
[381002410,1755931857782,-468.89,0.00013972,2]
[381002411,1755931857791,-575.01,0.00013972,2]
[381002412,1755931857801,-400.0,0.00013972,2]
[381002413,1755931857810,-781.92,0.00013972,2]
[381002414,1755931857819,-861.7,0.00013972,2]
[381002415,1755931857828,-400.0,0.00013972,2]
[381002416,1755931857838,-403.75,0.00013972,2]
[381002417,1755931857847,-400.0,0.00013972,2]
[381002418,1755931857856,-344.81372959,0.00013972,2]
[381002419,1755931857866,-470.06,0.00013972,2]
[381002420,1755931857875,-400.0,0.00013972,2]
[381002421,1755931857885,-499.04,0.00013972,2]
[381002422,1755931857894,-400.0,0.00013972,2]
[381002423,1755931857903,-400.0,0.00013972,2]
[381002424,1755931857912,-400.0,0.00013972,2]
[381002425,1755931857923,-440.46,0.00013972,2]
[381002426,1755931857933,-601.56,0.00013972,2]
[381002427,1755931857942,-425.43,0.00013972,2]
[381002428,1755931857951,-400.0,0.00013972,2]
[381002429,1755931857963,-1847.36,0.00013972,2]
[381002430,1755931857972,-686.49,0.00013972,2]
[381002431,1755931857981,-400.0,0.00013972,2]
[381002432,1755931857990,-666.16,0.00013972,2]
[381002433,1755931858000,-1336.44,0.00013972,2]
[381002434,1755931858009,-400.0,0.00013972,2]
[381002435,1755931858018,-516.42,0.00013972,2]
[381002436,1755931858027,-400.0,0.00013972,2]
[381002437,1755931858037,-400.0,0.00013972,2]
[381002438,1755931858046,-446.22,0.00013972,2]
[381002439,1755931858055,-400.0,0.00013972,2]
[381002440,1755931858064,-400.0,0.00013972,2]
[381002441,1755931858073,-262.31863679,0.00013972,2]
[381002442,1755931858087,-137.68136321,0.00013972,2]
[381002443,1755931858096,-398.1765193,0.00013972,2]
[381002444,1755931858107,-1.8234807,0.00013972,2]
[381002445,1755931858117,-640.73,0.00013972,2]
[381002446,1755931858126,-400.0,0.00013972,2]
[381002447,1755931858135,-540.81992781,0.00013972,2]
[381002448,1755931858147,-2.19007219,0.00013972,2]
[381002449,1755931858156,-400.0,0.00013972,2]
[381002450,1755931858165,-400.0,0.00013972,2]
[381002451,1755931858173,-446.03,0.00013972,2]
[381002452,1755931858183,-400.0,0.00013972,2]
[381002453,1755931858192,-400.0,0.00013972,2]
[381002454,1755931858201,-400.0,0.00013972,2]
[381002455,1755931858211,-417.1,0.00013972,2]
[381002456,1755931858221,-400.0,0.00013972,2]
[381002457,1755931858230,-486.77,0.00013972,2]
[381002458,1755931858239,-429.15,0.00013972,2]
[381002459,1755931858249,-587.64,0.00013972,2]
[381002460,1755931858259,-438.02,0.00013972,2]
[381002461,1755931858268,-400.0,0.00013972,2]
[381002462,1755931858278,-429.8,0.00013972,2]
[381002463,1755931858287,-877.23,0.00013972,2]
[381002464,1755931858297,-400.0,0.00013972,2]
[381002465,1755931858307,-400.0,0.00013972,2]
[381002466,1755931858316,-451.83,0.00013972,2]
[381002467,1755931858325,-587.21,0.00013972,2]
[381002468,1755931858335,-400.0,0.00013972,2]
[381002469,1755931858344,-400.0,0.00013972,2]
[381002470,1755931858354,-400.0,0.00013972,2]
[381002471,1755931858364,-463.29,0.00013972,2]
[381002472,1755931858373,-403.23367655,0.00013972,2]
[381002473,1755931858383,-869.42,0.00013972,2]
[381002474,1755931858392,-400.0,0.00013972,2]
[381002475,1755931858401,-400.0,0.00013972,2]
[381002476,1755931858411,-786.08,0.00013972,2]
[381002477,1755931858429,-664.68,0.00013972,2]
[381002478,1755931858440,-400.0,0.00013972,2]
[381002479,1755931858450,-400.0,0.00013972,2]
[381002480,1755931858459,-508.66,0.00013972,2]
[381002481,1755931858469,-400.0,0.00013972,2]
[381002482,1755931858479,-365.64095976,0.00013972,2]
[381002483,1755931858493,-34.35904024,0.00013972,2]
[381002484,1755931858503,-577.62,0.00013972,2]
[381002485,1755931858512,-402.76,0.00013972,2]
[381002486,1755931858523,-411.14,0.00013972,2]
[381002487,1755931858532,-527.49,0.00013972,2]
[381002488,1755931858542,-400.0,0.00013972,2]
[381002489,1755931858552,-400.0,0.00013972,2]
[381002490,1755931858562,-918.51,0.00013972,2]
[381002491,1755931858572,-400.0,0.00013972,2]
[381002492,1755931858582,-402.34,0.00013972,2]
[381002493,1755931858592,-400.0,0.00013972,2]
[381002494,1755931858602,-512.08,0.00013972,2]
[381002495,1755931858611,-400.0,0.00013972,2]
[381002496,1755931858623,-470.3,0.00013972,2]
[381002497,1755931858633,-601.56,0.00013972,2]
[381002498,1755931858643,-580.35,0.00013972,2]
[381002499,1755931858652,-400.0,0.00013972,2]
[381002500,1755931858663,-433.95,0.00013972,2]
[381002501,1755931858674,-400.0,0.00013972,2]
[381002502,1755931858684,-400.0,0.00013972,2]
[381002503,1755931858695,-400.0,0.00013972,2]
[381002504,1755931858705,-537.16,0.00013972,2]
[381002505,1755931858715,-400.0,0.00013972,2]
[381002506,1755931858724,-468.12,0.00013972,2]
[381002507,1755931858734,-485.28,0.00013972,2]
[381002508,1755931858743,-403.69,0.00013972,2]
[381002509,1755931858753,-400.0,0.00013972,2]
[381002510,1755931858763,-400.0,0.00013972,2]
[381002511,1755931858773,-804.8,0.00013972,2]
[381002512,1755931858783,-400.0,0.00013972,2]
[381002513,1755931858793,-564.67,0.00013972,2]
[381002514,1755931858803,-649.88,0.00013972,2]
[381002515,1755931858812,-400.0,0.00013972,2]
[381002516,1755931858822,-457.22,0.00013972,2]
[381002517,1755931858831,-400.0,0.00013972,2]
[381002518,1755931858841,-400.0,0.00013972,2]
[381002519,1755931858851,-400.0,0.00013972,2]
[381002520,1755931858861,-469.5,0.00013972,2]
[381002521,1755931858870,-400.0,0.00013972,2]
[381002522,1755931858880,-400.0,0.00013972,2]
[381002523,1755931858889,-400.0,0.00013972,2]
[381002524,1755931858899,-400.0,0.00013972,2]
[381002525,1755931858908,-400.0,0.00013972,2]
[381002526,1755931858918,-410.86,0.00013972,2]
[381002527,1755931858927,-430.34,0.00013972,2]
[381002528,1755931858937,-430.64,0.00013972,2]
[381002529,1755931858947,-601.58,0.00013972,2]
[381002530,1755931858956,-400.0,0.00013972,2]
[381002531,1755931858966,-436.9,0.00013972,2]
[381002532,1755931858975,-400.0,0.00013972,2]
[381002533,1755931858985,-3046.99,0.00013972,2]
[381002534,1755931858994,-627.75,0.00013972,2]
[381002535,1755931859004,-400.0,0.00013972,2]
[381002536,1755931859014,-443.0586095,0.00013972,2]
[381002537,1755931859024,-400.0,0.00013972,2]
[381002538,1755931859034,-660.95,0.00013972,2]
[381002539,1755931859049,-400.0,0.00013972,2]
[381002540,1755931859059,-400.0,0.00013972,2]
[381002541,1755931859069,-400.0,0.00013972,2]
[381002542,1755931859079,-598.01552024,0.00013972,2]
[381002543,1755931859099,-382.61447976,0.00013972,2]
[381002544,1755931859111,-400.0,0.00013972,2]
[381002545,1755931859120,-400.0,0.00013972,2]
[381002546,1755931859130,-4.28963708,0.00013972,2]
[381002547,1755931861249,-869.30755836,0.00012659,2]
[381002548,1755931861262,-1449.49721682,0.00012659,2]
[381002549,1755931861272,-347.47423272,0.00013698,2]
[381002550,1755931861283,-215.47576728,0.00013698,2]
[381002551,1755931861292,-151.49386347,0.00013698,2]
[381002552,1755931862568,-248.50613653,0.00013698,2]
[381002553,1755931862577,-91.02877195,0.00013698,2]
[381002554,1755931875241,-400.0,0.00012623,2]
[381002555,1755931882227,-400.0,0.00012623,2]
[381002556,1755931890287,-211.51,0.00012623,2]
[381002557,1755931890556,-94.0,0.00012623,2]
[381002558,1755931890565,-117.51,0.00012623,2]
[381002559,1755931890585,-23.01,0.00012623,2]
[381002560,1755931897105,-94.24,0.00012623,2]
[381002561,1755931897118,-211.52,0.00012623,2]
[381002562,1755931897128,-94.24,0.00012623,2]
[381002563,1755931904121,-118.87,0.00012623,2]
[381002564,1755931904144,-118.87,0.00012623,2]
[381002565,1755931904156,-95.1,0.00012623,2]
[381002566,1755931904165,-67.16,0.00012623,2]
[381002567,1755931912054,-188.36,0.00012623,2]
[381002568,1755931912179,-23.28,0.00012623,2]
[381002569,1755931912189,-188.36,0.00012623,2]
[381002570,1755931919498,-112.938995,0.00012559,2]
[381002571,1755931919513,-191.22201,0.00012559,2]
[381002572,1755931919523,-112.938995,0.00012623,2]
[381002573,1755931926540,-1.671005,0.00012623,2]
[381002574,1755931926571,-151.05,0.00012623,2]
[381002575,1755931926604,-1.671005,0.00012623,2]
[381002576,1755931926624,-151.05,0.00012623,2]
[381002577,1755931926635,-60.588995,0.00012623,2]
[381002578,1755931926647,-33.968995,0.00012623,2]
[381002579,1755931934427,-181.321005,0.00012623,2]
[381002580,1755931934544,-181.321005,0.00012623,2]
[381002581,1755931934570,-118.898995,0.00012623,2]
[381002582,1755931934579,-5.228995,0.00012623,2]
[381002583,1755931941292,-151.85,0.0001039,2]
[381002584,1755931941410,-151.85,0.00012623,2]
[381002585,1755931941427,-59.661005,0.00012623,2]
[381002586,1755931941435,-65.788995,0.00012623,2]
[381002587,1755931948872,-148.371005,0.00012623,2]
[381002588,1755931948900,-80.10799,0.00012623,2]
[381002589,1755931948953,-130.68201,0.00012623,2]
[381002590,1755931948963,-17.688995,0.00012623,2]
[381002591,1755931948975,-134.871005,0.00012623,2]
[381002592,1755931948984,-75.918995,0.00012623,2]
[381002593,1755931955915,-215.92,0.00011704,2]
[381002594,1755931955971,-215.92,0.00011805,2]
[381002595,1755931956031,-6.18,0.00011805,2]
[381002596,1755931962934,-191.17,0.00011704,2]
[381002597,1755931962991,-17.66,0.00011704,2]
[381002598,1755931963001,-82.28,0.00011805,2]
[381002599,1755931963012,-108.89,0.00012622,2]
[381002600,1755931970123,-71.29075316,0.00012622,2]
[381002601,1755931970151,-58.12748868,0.00012623,2]
[381002602,1755931970327,-71.29075316,0.00012623,2]
[381002603,1755931970338,-99.67276316,0.00012623,2]
[381002604,1755931970349,-129.41824184,0.00012623,2]
[381002605,1755931977715,-211.25,0.00011727,2]
[381002606,1755931977743,-86.05175816,0.00012623,2]
[381002607,1755931977771,-73.94648368,0.00012623,2]
[381002608,1755931977784,-134.73351632,0.00012623,2]
[381002609,1755931977794,-76.51648368,0.00012623,2]
[381002610,1755931977819,-86.05175816,0.00012623,2]
[381002611,1755931977842,-47.07175816,0.00012623,2]
[381002612,1755931977851,-161.60824184,0.00012623,2]
[381002614,1755931984671,-184.59,0.00011727,2]
[381002615,1755931984684,-30.82,0.00011727,2]
[381002616,1755931984693,-184.59,0.00012623,2]
[381002617,1755931991621,-117.53,0.00012623,2]
[381002618,1755931991641,-117.53,0.00012623,2]
[381002619,1755931991656,-97.85,0.00012623,2]
[381002620,1755931991667,-67.09,0.00012623,2]
[381002621,1755931998595,-141.44,0.00012623,2]
[381002622,1755931998615,-141.44,0.00012623,2]
[381002623,1755931998638,-72.62,0.00012623,2]
[381002624,1755931998648,-96.33,0.00012623,2]
[381002625,1755932005546,-204.4,0.00012623,2]
[381002626,1755932005573,-46.76175816,0.00012623,2]
[381002627,1755932005594,-151.48,0.00012623,2]
[381002628,1755932005603,-52.92,0.00012623,2]
[381002629,1755932005615,-46.76175816,0.00012623,2]
[381002630,1755932005638,-84.88648368,0.00012623,2]
[381002632,1755932012528,-162.62,0.00012523,2]
[381002633,1755932012556,-162.62,0.00012623,2]
[381002634,1755932012570,-74.76,0.00012623,2]
[381002635,1755932019517,-65.58,0.00012623,2]
[381002636,1755932019545,-119.29175816,0.00012623,2]
[381002637,1755932019564,-65.58,0.00012623,2]
[381002638,1755932019575,-119.29175816,0.00012623,2]
[381002639,1755932019587,-25.18824184,0.00012623,2]
[381002640,1755932019596,-5.06824184,0.00012623,2]
[381002641,1755932026690,-190.85824184,0.00012623,2]
[381002642,1755932026702,-18.28351632,0.00012623,2]
[381002643,1755932026712,-190.85824184,0.00012623,2]
[381002644,1755932033804,-23.45175816,0.00012623,2]
[381002645,1755932033833,-201.39648368,0.00012623,2]
[381002646,1755932033910,-13.59351632,0.00012623,2]
[381002647,1755932033920,-9.85824184,0.00012623,2]
[381002648,1755932033990,-201.62175816,0.00012623,2]
[381002649,1755932033999,-13.36824184,0.00012623,2]
[381002650,1755932040711,-99.00367655,0.00012623,2]
[381002651,1755932040724,-205.22632345,0.00012623,2]
[381002652,1755932040733,-99.00367655,0.00012623,2]
[381002653,1755932048350,-300.0,0.00012622,2]
[381002654,1755932048378,-78.51191839,0.00012623,2]
[381002655,1755932048392,-112.39616322,0.00012623,2]
[381002656,1755932048403,-187.60383678,0.00012623,2]
[381002657,1755932048417,-25.11616322,0.00012623,2]
[381002658,1755932048427,-165.79191839,0.00012623,2]
[381002659,1755932055290,-46.18808161,0.00012623,2]
[381002660,1755932055318,-92.61383678,0.00012623,2]
[381002661,1755932055340,-46.18808161,0.00012623,2]
[381002662,1755932055367,-76.20808161,0.00012623,2]
[381002663,1755932055376,-138.80191839,0.00012623,2]
[381002664,1755932061526,2000.75,0.00028767,120]
[381002665,1755932062279,-150.69,0.00012622,2]
[381002666,1755932062308,-26.50191839,0.00012623,2]
[381002667,1755932062656,-45.61616322,0.00012623,2]
[381002668,1755932062666,-105.07383678,0.00012623,2]
[381002669,1755932062687,-72.11808161,0.00012623,2]
[381002670,1755932069194,-213.5,0.00012622,2]
[381002671,1755932069225,-33.65808161,0.00012623,2]
[381002672,1755932069246,-213.5,0.00012623,2]
[381002673,1755932069272,-33.65808161,0.00012623,2]
[381002674,1755932069292,-57.84191839,0.00012623,2]